bitfinex-derivatives/quotes_ETHF0:USTF0_20251229
["timestamp","ask_amount","ask_price","bid_price","bid_amount"]
[1766978786344,1.44639024,3012.1,3011.1,0.00498703]
[1766978787935,0.16614,3012.2,3011.1,0.00498703]
[1766978795763,1.44531233,3012.3,3010.8,0.00352792]
[1766978796063,0.16616,3011.9,3010.8,0.00352792]
[1766978796760,0.16616,3011.9,3011.0,0.00498703]
[1766978799468,0.3319,3012.4,3011.0,0.00498703]
[1766978806070,0.17110703,3012.5,3011.0,0.00498703]
[1766978809072,0.3319,3012.4,3011.0,0.00498703]
[1766978822073,0.49803,3012.4,3011.0,0.00498703]
[1766978822377,1.44531233,3012.2,3010.8,0.00352792]
[1766978822578,1.44531233,3012.2,3010.3,5.98252857]
[1766978822780,1.44531233,3012.2,3009.9,7.75178904]
[1766978823074,1.44531233,3012.2,3009.9,0.16626]
[1766978823580,1.44531233,3012.2,3009.9,0.16905066]
[1766978824374,0.16615,3012.0,3010.7,0.00498703]
[1766978826980,0.16615,3011.9,3010.7,0.00498703]
[1766978827182,0.16615,3011.9,3009.9,0.16905066]
[1766978827383,0.16616,3011.7,3009.9,0.16905066]
[1766978827573,0.16617,3011.6,3009.9,0.16905066]
[1766978828186,0.16617,3011.6,3010.4,0.00332472]
[1766978836787,0.332,3011.5,3010.4,0.00332472]
[1766978837887,0.49818,3011.5,3010.4,2.472e-05]
[1766978838088,1.44531233,3011.3,3009.9,0.00279066]
[1766978839192,0.00498703,3010.9,3009.9,0.00279066]
[1766978840688,1.45029936,3010.9,3009.9,0.00279066]
[1766978845396,0.00498703,3010.9,3009.9,0.00279066]
[1766978852500,0.332,3011.5,3009.9,0.00279066]
[1766978853499,0.332,3011.5,3010.4,0.00498703]
[1766978854603,0.00498703,3011.3,3010.4,1.45060951]
[1766978854898,0.00498703,3011.3,3010.4,0.00498703]
[1766978855213,0.00498703,3011.3,3010.4,1.45060951]
[1766978857419,0.16614,3012.3,3011.2,1.44562248]
[1766978857606,0.00097325,3012.8,3010.5,4.24049751]
[1766978857607,1.44562248,3012.1,3010.5,4.24049751]
[1766978857807,1.44562248,3012.1,3010.5,1.44562248]
[1766978858010,1.44562248,3012.1,3010.5,5.70732425]
[1766978858414,0.00498703,3011.6,3010.8,1.44562248]
[1766978858612,0.16708325,3012.8,3011.4,1.44562248]
[1766978858819,0.00097325,3012.8,3010.9,4.26170177]
[1766978859008,1.44562248,3012.6,3011.3,1.44562248]
[1766978859317,0.00097325,3012.8,3011.3,1.44562248]
[1766978859516,0.00498703,3012.4,3011.3,1.44562248]
[1766978861716,0.00498703,3012.4,3011.6,1.44562248]
[1766978861922,0.00097325,3012.8,3011.7,1.44562248]
[1766978862216,0.00097325,3012.8,3011.4,1.44562248]
[1766978862619,0.00097325,3012.8,3011.6,1.44562248]
[1766978863013,0.00498703,3012.5,3011.9,0.00498703]
[1766978881225,0.00097325,3012.8,3011.9,0.00498703]
[1766978882238,0.00332472,3012.7,3011.9,0.00498703]
[1766978882934,0.00332472,3012.7,3012.1,1.44562248]
[1766978883136,0.16609,3013.1,3012.1,1.44562248]
[1766978883137,0.16609,3013.1,3012.1,1.44855072]
[1766978883438,4.88306,3013.7,3012.1,1.44855072]
[1766978884031,4.88698638,3013.7,3012.1,1.44855072]
[1766978884232,6.33260886,3013.7,3012.1,1.44855072]
[1766978888634,1.44562248,3013.4,3012.1,0.00292824]
[1766978888938,1.44562248,3013.1,3012.1,0.00292824]
[1766978892638,0.16609,3013.2,3012.1,0.00292824]
[1766978903153,4.72092638,3013.7,3012.1,0.00292824]
[1766978903154,1.61172248,3013.1,3012.1,0.00292824]
[1766978903344,0.16612,3012.7,3011.3,1.44562248]
[1766978904354,0.00495915,3012.3,3011.7,0.00497867]
[1766978905849,0.00495915,3012.3,3011.3,0.00347062]
[1766978906054,1.44562248,3012.2,3011.3,0.00347062]
[1766978906948,1.61177248,3012.2,3010.6,1.44562248]
[1766978907148,1.44562248,3011.6,3009.8,7.77728714]
[1766978907354,1.44562248,3011.6,3009.9,1.44562248]
[1766978907553,0.16617,3011.8,3010.2,1.44562248]
[1766978907756,0.00495915,3012.3,3011.4,1.44562248]
[1766978907955,0.00495915,3012.3,3011.4,0.00339363]
[1766978909161,0.00495915,3012.3,3011.5,0.00497867]
[1766978909755,1.44562248,3012.2,3011.4,0.00339363]
[1766978909955,1.44562248,3012.2,3010.7,1.44562248]
[1766978910157,1.44562248,3012.2,3010.3,0.16625]
[1766978910158,1.44562248,3011.9,3010.3,0.16625]
[1766978910352,1.44562248,3011.9,3010.3,1.61187248]
[1766978910552,1.44562248,3011.9,3010.6,1.44562248]
[1766978910855,1.44562248,3011.9,3010.9,0.00497867]
[1766978912262,1.44562248,3012.2,3010.9,0.00497867]
[1766978913360,1.61176248,3012.2,3010.9,0.00497867]
[1766978914254,0.16614,3012.2,3010.9,0.00497867]
[1766978919357,0.00495915,3012.3,3010.9,0.00497867]
[1766978919358,0.16615,3012.1,3010.9,0.00497867]
[1766978919558,1.44537145,3012.2,3010.9,0.00497867]
[1766978919758,0.16616,3011.9,3010.6,0.00242929]
[1766978920769,0.16616,3011.9,3010.9,0.00333865]
[1766978928775,0.16616,3011.9,3010.9,3.865e-05]
[1766978928974,0.16617,3011.8,3010.9,3.865e-05]
[1766978934679,0.16617,3011.8,3010.6,0.00242929]
[1766978938987,0.16617,3011.8,3010.6,2.929e-05]
[1766978945488,1.44537145,3011.6,3010.6,2.929e-05]
[1766978945679,1.44537145,3012.0,3010.6,2.929e-05]
[1766978946484,0.16618,3011.5,3010.6,2.929e-05]
[1766978946685,0.17000812,3011.5,3010.6,2.929e-05]
[1766978975714,0.00382812,3011.5,3010.6,2.929e-05]
[1766978976411,0.00495915,3012.3,3010.8,1.44537145]
[1766978977517,0.00826312,3012.3,3010.8,1.44537145]
[1766978977915,0.00826312,3012.3,3011.2,1.44537145]
[1766978978409,0.00826312,3012.3,3010.9,0.16622]
[1766978978712,0.00826312,3012.3,3011.0,4.27861839]
[1766978978921,0.00826312,3012.3,3010.9,1.61134153]
[1766978980922,0.00826312,3012.3,3010.9,0.16622]
[1766978981122,0.00826312,3012.3,3010.9,1.61134153]
[1766978982012,0.00826312,3012.3,3011.2,1.44512153]
[1766978983424,0.00826312,3012.3,3010.9,1.61134153]
[1766978986021,0.00826312,3012.3,3010.7,1.44512153]
[1766978986022,1.44512153,3012.1,3010.7,1.44512153]
[1766978986428,1.44512153,3012.1,3010.6,2.929e-05]
[1766978987729,0.00826312,3012.3,3010.7,1.44512153]
[1766978992431,1.44512153,3012.1,3010.7,1.44512153]
[1766978995933,1.44512153,3011.8,3010.6,2.929e-05]
[1766979000434,0.00826312,3012.3,3010.8,1.44512153]
[1766979000639,0.00826312,3012.3,3011.1,1.44512153]
[1766979000942,0.00826312,3012.3,3011.4,1.44512153]
[1766979001243,1.44512153,3013.2,3011.7,1.44512153]
[1766979001935,1.44512153,3013.6,3012.0,1.44512153]
[1766979002137,0.00497867,3013.1,3012.3,1.44512153]
[1766979002337,0.00497867,3013.1,3012.0,1.44512153]
[1766979003340,1.44512153,3013.0,3011.5,0.00495915]
[1766979004739,0.00497867,3013.1,3011.5,0.00495915]
[1766979005035,1.44512153,3013.0,3011.7,1.44512153]
[1766979006341,1.44512153,3013.0,3011.5,0.00495915]
[1766979007846,1.4501002,3013.1,3011.5,0.00495915]
[1766979010050,1.4501002,3013.1,3011.7,1.44512153]
[1766979013151,1.4501002,3013.1,3011.5,0.00495915]
[1766979014754,1.44512153,3012.8,3011.5,0.00495915]
[1766979015053,1.44512153,3012.5,3011.5,0.00495915]
[1766979015248,1.44512153,3012.8,3011.5,0.00495915]
[1766979017355,1.61123153,3012.8,3011.5,0.00495915]
[1766979019356,1.44512153,3012.3,3011.5,0.00495915]
[1766979019557,1.44512153,3012.0,3010.6,0.16625929]
[1766979019763,1.44512153,3012.0,3010.6,2.929e-05]
[1766979020064,0.332,3011.9,3010.7,1.44512153]
[1766979022475,0.332,3011.9,3010.6,2.929e-05]
[1766979022674,0.00497867,3011.6,3010.6,2.929e-05]
[1766979037177,0.332,3011.5,3010.6,2.929e-05]
[1766979037984,0.1193,3011.5,3010.6,1.44515082]
[1766979038186,1.44512153,3012.8,3011.2,1.44512153]
[1766979038482,0.16611,3012.9,3010.7,1.44485403]
[1766979038785,0.16611,3012.9,3010.7,5.85446093]
[1766979039180,0.00497867,3012.1,3011.5,0.00497867]
[1766979042285,0.16608,3013.4,3011.5,0.00497867]
[1766979042478,1.44485403,3013.3,3011.5,0.00497867]
[1766979042685,1.44485403,3012.9,3011.5,0.00497867]
[1766979043085,0.00497867,3012.5,3011.5,0.00497867]
[1766979043280,1.4498327,3012.5,3010.6,2.929e-05]
[1766979043888,0.00497867,3012.5,3010.6,2.929e-05]
[1766979044278,0.00497867,3012.5,3011.2,0.00497867]
[1766979046889,1.44485403,3012.4,3011.2,0.00497867]
[1766979047694,1.4498327,3012.5,3011.2,0.00497867]
[1766979047895,0.00497867,3012.5,3011.2,0.00497867]
[1766979048094,0.16613,3012.4,3011.2,0.00497867]
[1766979048688,0.16613,3012.4,3010.6,2.929e-05]
[1766979049397,0.16614,3012.3,3010.6,2.929e-05]
[1766979049896,0.16615,3012.2,3010.6,2.929e-05]
[1766979060203,0.00497867,3012.5,3010.6,2.929e-05]
[1766979062200,0.00497867,3012.5,3010.7,5.80468195]
[1766979062405,0.00497867,3012.5,3011.2,0.1662]
[1766979062599,0.00497867,3012.5,3011.3,0.16619]
[1766979063206,1.44485403,3013.3,3011.6,0.00497867]
[1766979063401,0.16608,3013.4,3011.6,0.00497867]
[1766979064108,0.00497867,3012.8,3011.6,0.00497867]
[1766979064501,1.65525945,3013.6,3011.7,4.22169752]
[1766979065508,0.00497867,3013.0,3011.7,4.22169752]
[1766979066803,0.00497867,3013.0,3011.6,0.17114867]
[1766979078827,0.00497867,3013.0,3011.6,0.00497867]
[1766979079127,0.17107867,3013.0,3011.6,0.00497867]
[1766979083633,0.00497867,3013.0,3011.6,0.00497867]
[1766979086530,0.17107867,3013.0,3011.6,0.00497867]
[1766979087527,0.16611,3012.9,3011.6,0.00497867]
[1766979087820,0.16611,3012.8,3011.6,0.00497867]
[1766979096035,1.44485403,3012.6,3010.6,2.929e-05]
[1766979097038,1.44485403,3012.6,3011.3,0.00497867]
[1766979097239,0.16614,3012.2,3011.3,0.00497867]
[1766979097940,0.16614,3012.2,3010.6,2.929e-05]
[1766979099226,1.61100403,3012.1,3010.6,2.929e-05]
[1766979099434,0.16616,3011.9,3010.6,2.929e-05]
[1766979100540,1.44579492,3011.8,3010.6,2.929e-05]
[1766979105230,0.16616,3011.9,3011.2,1.44579492]
[1766979105534,0.16616,3011.9,3010.9,1.44579492]
[1766979107242,0.16616,3011.9,3010.6,2.929e-05]
[1766979107435,0.16616,3011.9,3010.8,1.44579492]
[1766979107638,0.16616,3011.9,3010.7,1.44579492]
[1766979108436,1.44579492,3012.3,3010.7,1.44579492]
[1766979109636,1.44579492,3012.0,3010.6,2.929e-05]
[1766979109842,1.44579492,3011.7,3010.6,2.929e-05]
[1766979110042,0.00497867,3011.5,3010.6,2.929e-05]
[1766979116853,0.00497867,3011.5,3010.6,1.44582421]
[1766979124357,0.00497867,3011.5,3010.6,2.929e-05]
[1766979127359,1.44579492,3012.1,3010.6,2.929e-05]
[1766979128253,0.16614,3012.2,3011.0,0.00497867]
[1766979128452,1.44579492,3012.1,3011.0,0.00497867]
[1766979128646,1.44579492,3011.8,3011.0,0.00497867]
[1766979129455,0.00497867,3011.7,3011.0,0.00497867]
[1766979140268,0.332,3011.6,3011.0,0.00497867]
[1766979140464,0.16615,3012.1,3011.0,0.00497867]
[1766979141469,0.00497867,3011.9,3011.0,0.00497867]
[1766979143567,0.33697867,3011.9,3011.0,0.00497867]
[1766979143965,0.16932945,3013.6,3011.8,1.44579492]
[1766979144177,0.00325945,3013.6,3012.6,1.44579492]
[1766979144469,0.00325945,3013.6,3011.8,1.44579492]
[1766979144470,0.00325945,3013.6,3013.0,1.44579492]
[1766979144763,4.661,3015.3,3013.0,1.44976532]
[1766979144959,1.44579492,3014.1,3013.0,0.0039704]
[1766979145268,0.00497867,3013.9,3013.2,0.00497867]
[1766979145566,0.0080269,3013.9,3013.2,0.00497867]
[1766979146069,0.02375021,3013.6,3013.2,0.00497867]
[1766979146265,1.44579492,3014.6,3013.2,1.45077359]
[1766979146569,1.44579492,3013.7,3013.2,0.00497867]
[1766979146762,0.04750042,3013.5,3013.0,0.0039704]
[1766979147868,0.04750042,3013.3,3013.0,0.0039704]
[1766979148255,0.04750042,3013.3,3012.9,0.00497867]
[1766979148769,0.00351,3013.5,3012.9,0.00497867]
[1766979149272,0.16598,3015.3,3012.9,1.45427061]
[1766979149573,1.44579492,3014.8,3013.2,1.44579492]
[1766979149869,1.44579492,3014.5,3012.9,1.45427061]
[1766979150168,1.44579492,3014.2,3012.9,0.00847569]
[1766979150355,0.00497867,3013.9,3012.9,0.00847569]
[1766979151764,0.00497867,3013.9,3011.6,3.21904401]
[1766979151967,0.00497867,3013.9,3011.6,2.063]
[1766979152269,0.3317,3013.8,3011.7,4.21672413]
[1766979152771,0.3317,3013.8,3012.4,0.00497867]
[1766979157067,0.16607,3013.6,3012.4,0.00497867]
[1766979157668,0.3317,3013.8,3012.4,0.00497867]
[1766979159172,0.3317,3013.8,3012.5,4.38925205]
[1766979159372,0.00377714,3014.2,3012.5,8.12825205]
[1766979160073,0.00377714,3014.2,3012.5,4.38925205]
[1766979160475,0.00497867,3013.7,3012.5,4.38925205]
[1766979161076,0.00497867,3013.7,3012.4,0.00497867]
[1766979170279,0.16607,3013.6,3012.4,0.00497867]
[1766979170680,0.16608,3013.4,3012.4,0.00497867]
[1766979175385,0.00497867,3013.7,3012.4,0.00497867]
[1766979175590,0.16981714,3014.2,3012.6,1.44422519]
[1766979175785,0.00377714,3014.2,3012.6,1.44422519]
[1766979175983,0.00377714,3014.2,3012.7,8.46353848]
[1766979176788,0.00331914,3013.8,3012.7,8.46353848]
[1766979177282,0.00377714,3014.2,3012.7,8.46353848]
[1766979178290,0.00377714,3014.2,3012.7,4.29660241]
[1766979180791,4.652,3015.3,3012.9,0.16611]
[1766979180990,4.81797,3015.3,3012.9,0.16611]
[1766979181189,0.166,3014.9,3013.0,4.24526123]
[1766979181389,0.16601,3014.7,3012.8,9.37793607]
[1766979181579,4.652,3015.3,3012.5,4.16693607]
[1766979181580,0.16602,3014.5,3012.5,4.16693607]
[1766979181784,0.00302477,3014.5,3012.5,4.16693607]
[1766979181983,0.16605,3014.0,3012.4,0.00497867]
[1766979183394,0.00302477,3014.5,3012.4,0.00497867]
[1766979183592,0.00302477,3014.5,3012.4,4.17191474]
[1766979184188,0.16602,3014.4,3012.4,4.17191474]
[1766979184392,0.00302477,3014.5,3012.4,0.00497867]
[1766979185297,0.16604,3014.1,3012.4,0.00497867]
[1766979186295,0.16605,3014.0,3012.4,0.00497867]
[1766979189797,0.16602,3014.4,3012.4,0.00497867]
[1766979189998,0.16602,3014.4,3012.5,4.40851144]
[1766979190498,0.16602,3014.4,3012.5,4.57464144]
[1766979193900,0.00302477,3014.5,3012.6,0.16612]
[1766979194301,0.00302477,3014.5,3012.7,4.36041551]
[1766979194503,0.00302477,3014.5,3012.8,5.402]
[1766979194801,0.00302477,3014.5,3012.9,5.402]
[1766979195098,0.00302477,3014.5,3013.0,4.40082446]
[1766979197301,0.16594,3016.0,3013.6,0.16607]
[1766979197500,0.16594,3016.0,3014.5,0.00497867]
[1766979198298,0.16781869,3016.0,3014.5,0.00734437]
[1766979203713,0.00187869,3016.0,3013.5,4.16693607]
[1766979203911,0.16598,3015.2,3013.1,4.16693607]
[1766979204216,0.16598,3015.2,3012.8,11.41863857]
[1766979204217,0.16598,3015.2,3012.9,8.48947866]
[1766979204404,0.16598,3015.2,3013.2,4.32254259]
[1766979204601,0.00497867,3014.5,3013.9,0.00497867]
[1766979204801,0.16598,3015.2,3013.9,0.00497867]
[1766979205112,0.16596,3015.6,3013.9,0.00497867]
[1766979205311,0.16596,3015.5,3013.9,0.00497867]
[1766979205612,0.16597,3015.3,3013.9,0.00497867]
[1766979206313,4.647,3015.9,3013.9,0.00497867]
[1766979206612,4.647,3015.9,3013.2,0.00350481]
[1766979207207,0.16599,3015.1,3013.2,0.00350481]
[1766979207606,0.00497867,3014.5,3013.8,0.00497867]
[1766979208315,0.16599,3015.1,3013.8,0.00497867]
[1766979211516,4.65,3015.6,3013.8,0.00497867]
[1766979211713,4.81596,3015.6,3013.8,0.00497867]
[1766979213417,0.16596,3015.5,3013.8,0.00497867]
[1766979214521,0.16596,3015.5,3013.9,4.4020131]
[1766979216213,0.00187869,3016.0,3014.0,0.16604]
[1766979216413,0.00187869,3016.0,3014.2,4.16693607]
[1766979216809,0.00187869,3016.0,3014.4,4.16693607]
[1766979217015,0.00187869,3016.0,3014.4,4.33295607]
[1766979217223,0.00187869,3016.0,3014.6,4.16693607]
[1766979217620,0.00187869,3016.0,3014.5,4.16693607]
[1766979218010,0.00187869,3016.0,3014.6,4.16693607]
[1766979218417,0.00187869,3016.0,3014.3,4.16693607]
[1766979218919,0.16595,3015.9,3014.2,4.16693607]
[1766979219314,0.16595,3015.9,3013.9,4.28462574]
[1766979219515,0.16595,3015.9,3013.8,4.33797474]
[1766979219916,0.16595,3015.9,3013.9,4.28462574]
[1766979220117,0.16595,3015.7,3013.8,4.17191474]
[1766979220321,0.16596,3015.5,3013.8,4.17191474]
[1766979220622,0.16596,3015.5,3013.8,0.00497867]
[1766979221119,0.3316,3015.4,3013.8,0.00497867]
[1766979221824,0.166,3014.8,3013.8,0.00497867]
[1766979223314,0.3316,3015.4,3013.8,0.00497867]
[1766979223519,0.3316,3015.4,3013.9,8.90305957]
[1766979223722,0.3316,3015.4,3014.1,4.16693607]
[1766979224026,0.3316,3015.4,3014.2,4.40605957]
[1766979224723,0.3316,3015.4,3014.1,4.16693607]
[1766979225320,0.3316,3015.4,3013.9,5.394]
[1766979225321,0.3316,3015.4,3013.9,4.16693607]
[1766979225520,0.49757,3015.4,3013.9,4.16693607]
[1766979225830,0.49757,3015.4,3013.8,0.00497867]
[1766979226021,0.16597,3015.3,3013.8,0.00497867]
[1766979229525,0.00187869,3016.0,3013.9,6.48172216]
[1766979229722,0.00187869,3016.0,3014.4,2.20767839]
[1766979229925,0.00187869,3016.0,3014.6,4.16693607]
[1766979230329,0.00187869,3016.0,3014.7,4.28155125]
[1766979230526,0.00187869,3016.0,3014.6,4.16693607]
[1766979230726,0.00187869,3016.0,3014.4,5.396]
[1766979230928,0.00187869,3016.0,3014.2,4.16693607]
[1766979231132,0.00187869,3016.0,3014.2,9.56293607]
[1766979231335,0.00187869,3016.0,3014.3,4.35160757]
[1766979231926,0.00187869,3016.0,3014.1,4.16693607]
[1766979232336,0.00187869,3016.0,3013.9,5.398]
[1766979232726,0.00187869,3016.0,3014.0,4.33842182]
[1766979233427,0.00187869,3016.0,3014.1,4.16693607]
[1766979233624,0.00187869,3016.0,3014.1,4.33297607]
[1766979233824,0.00187869,3016.0,3014.2,8.38983598]
[1766979234733,0.00187869,3016.0,3014.2,8.55586598]
[1766979235136,0.00187869,3016.0,3014.4,4.16693607]
[1766979235538,4.644,3016.6,3014.5,4.29683279]
[1766979235744,4.644,3016.6,3014.6,5.402]
[1766979236036,0.16588,3017.0,3014.7,4.29683279]
[1766979236428,0.0058657,3016.5,3014.7,4.29683279]
[1766979238426,0.0058657,3016.5,3014.8,5.405]
[1766979238628,0.0058657,3016.5,3015.3,0.00497867]
[1766979241325,0.16585,3017.6,3015.4,4.2869202]
[1766979241728,0.16585,3017.6,3015.5,5.404]
[1766979241938,0.16585,3017.6,3015.6,5.404]
[1766979242129,0.14535867,3017.8,3015.7,2.20767839]
[1766979242334,0.14535867,3017.8,3015.7,2.21153713]
[1766979242534,0.14535867,3017.8,3015.8,4.54403468]
[1766979242733,0.14535867,3017.8,3015.7,5.40785874]
[1766979243133,0.16584,3017.7,3015.7,5.40785874]
[1766979243640,0.16585,3017.6,3015.7,0.00385874]
[1766979244432,0.16585,3017.6,3015.8,4.38935067]
[1766979244833,0.14535867,3017.8,3015.8,4.38935067]
[1766979245234,0.14535867,3017.8,3016.0,2.20767839]
[1766979245432,0.14535867,3017.8,3015.8,4.55529067]
[1766979245635,2.20767839,3017.6,3016.1,4.32214782]
[1766979245840,0.16586,3017.4,3015.7,0.00385874]
[1766979247745,0.16586,3017.3,3015.7,0.00385874]
[1766979247949,0.16587,3017.2,3015.7,0.00385874]
[1766979248147,2.20767839,3017.6,3015.7,0.00385874]
[1766979248348,0.16588,3017.0,3015.7,0.00385874]
[1766979248750,0.16589,3016.8,3015.7,0.00385874]
[1766979249050,2.20767839,3017.1,3015.3,0.00497867]
[1766979250252,2.21085416,3017.1,3015.3,0.00764969]
[1766979250454,0.1659,3016.6,3015.3,0.00764969]
[1766979256158,2.20767839,3016.6,3015.3,4.969e-05]
[1766979256362,0.17089867,3016.3,3014.0,4.16693607]
[1766979256857,0.16595,3015.8,3014.1,4.23695392]
[1766979257053,0.16595,3015.8,3013.7,0.16606]
[1766979257251,0.16595,3015.8,3014.4,0.00497867]
[1766979257453,0.3315,3015.7,3014.4,0.00497867]
[1766979258349,2.20767839,3015.6,3013.7,0.00338082]
[1766979259054,0.3315,3015.7,3013.7,0.00338082]
[1766979259255,0.3315,3015.7,3014.4,0.00497867]
[1766979259455,2.53917839,3015.7,3013.7,0.00338082]
[1766979259661,0.16598,3015.5,3013.7,0.00338082]
[1766979259857,0.16599,3015.4,3013.7,0.00338082]
[1766979260561,0.16599,3015.4,3014.2,0.00497867]
[1766979262562,0.16599,3015.3,3013.7,0.00338082]
[1766979262762,0.166,3015.1,3013.7,0.00338082]
[1766979263368,0.16601,3015.0,3013.7,0.00338082]
[1766979263562,0.00497867,3014.7,3014.0,0.00497867]
[1766979263757,0.00800571,3014.7,3013.7,0.00338082]
[1766979263953,0.00800571,3014.7,3012.6,0.16614]
[1766979264264,0.00800571,3014.7,3012.7,4.31406685]
[1766979264465,0.16603,3014.6,3012.7,4.31406685]
[1766979264850,0.16603,3014.6,3013.3,0.00497867]
[1766979265950,0.00800571,3014.7,3013.3,0.00497867]
[1766979266156,0.00800571,3014.7,3013.4,4.32814401]
[1766979269668,4.6225,3015.7,3013.4,4.49423401]
[1766979269857,4.6225,3015.7,3013.4,9.71614401]
[1766979270351,0.3315,3015.7,3013.4,9.71614401]
[1766979270563,6.49695,3016.1,3013.4,9.71614401]
[1766979270756,0.00497867,3015.1,3013.4,9.71614401]
[1766979271160,0.00497867,3015.1,3013.4,4.32814401]
[1766979271356,0.00497867,3015.1,3013.4,9.88423401]
[1766979272258,0.00497867,3015.1,3013.4,4.49423401]
[1766979272459,0.00497867,3015.1,3013.3,0.00497867]
[1766979273465,0.3316,3015.0,3013.3,0.00497867]
[1766979274067,2.53927839,3015.0,3013.3,0.00497867]
[1766979275064,0.16603,3014.7,3013.3,0.00497867]
[1766979275261,2.20767839,3014.5,3013.3,0.00497867]
[1766979276266,2.37373839,3014.0,3012.7,0.00271629]
[1766979277068,2.37373839,3014.0,3011.6,0.16619]
[1766979277069,0.16607,3013.8,3011.6,0.16619]
[1766979277270,0.00497867,3013.0,3012.4,0.00497867]
[1766979277461,0.00497867,3013.0,3011.7,4.39288086]
[1766979277666,0.00497867,3013.0,3011.2,2.824]
[1766979278173,0.00744013,3013.0,3011.3,4.39288086]
[1766979278564,0.00744013,3013.0,3011.8,0.00331914]
[1766979282675,0.17356013,3013.0,3011.8,1.914e-05]
[1766979282969,0.16613,3012.8,3011.2,0.00380271]
[1766979283164,0.16613,3012.7,3011.2,0.00380271]
[1766979283468,0.16614,3012.6,3011.2,0.00380271]
[1766979283859,0.00744013,3013.0,3011.2,0.00380271]
[1766979284065,0.56444013,3013.0,3011.2,0.00380271]
[1766979286471,0.00744013,3013.0,3011.2,0.00380271]
[1766979287682,0.17356013,3013.0,3011.2,0.00380271]
[1766979290076,0.17356013,3013.0,3011.3,4.35467481]
[1766979290384,0.00744013,3013.0,3011.3,4.35467481]
[1766979290880,0.00744013,3013.0,3011.4,0.1662]
[1766979291177,0.00744013,3013.0,3011.5,9.77381464]
[1766979291582,0.16604,3014.4,3011.8,0.16618]
[1766979291875,0.16606,3014.1,3011.9,4.30031416]
[1766979292476,0.00497867,3013.3,3011.2,0.00380271]
[1766979292678,0.16612,3013.0,3011.2,0.00380271]
[1766979295080,0.00497867,3013.3,3011.2,0.00380271]
[1766979295283,0.16614,3012.6,3011.2,0.00380271]
[1766979295476,0.16615,3012.5,3011.2,0.00380271]
[1766979295882,0.00497867,3013.3,3008.4,2.50567987]
[1766979295883,2.50567987,3013.1,3008.4,2.50567987]
[1766979296183,2.50567987,3013.1,3010.0,4.35020056]
[1766979296184,0.00497867,3011.4,3010.0,4.35020056]
[1766979296383,0.00497867,3011.4,3009.8,0.16629]
[1766979296782,0.00497867,3011.4,3010.1,4.37554326]
[1766979297082,0.00766562,3011.4,3010.1,0.00308371]
[1766979297284,0.00766562,3011.4,3010.2,4.37554326]
[1766979299180,0.16613,3012.8,3010.2,4.37554326]
[1766979300086,0.00497867,3011.8,3011.2,0.00497867]
[1766979301483,0.00338781,3012.8,3011.2,0.00497867]
[1766979302282,0.00338781,3012.8,3011.3,4.35904358]
[1766979303290,0.00338781,3012.8,3011.4,0.1662]
[1766979303793,0.00338781,3012.8,3011.5,4.23730796]
[1766979304585,0.00497867,3012.5,3011.5,4.23730796]
[1766979304790,0.00338781,3012.8,3011.5,4.23730796]
[1766979305788,0.00497867,3012.5,3011.5,4.23730796]
[1766979309091,0.00338781,3012.8,3011.5,4.23730796]
[1766979310099,0.00331914,3012.5,3011.5,4.23730796]
[1766979310294,1.914e-05,3012.5,3011.5,4.23730796]
[1766979311301,0.00338781,3012.8,3011.6,0.16619]
[1766979311494,3.309,3013.9,3011.6,0.16619]
[1766979311694,3.309,3013.9,3011.7,4.29848153]
[1766979312600,3.3114941,3013.9,3011.7,4.29848153]
[1766979313704,0.16608,3013.7,3011.6,0.16619]
[1766979314908,0.16608,3013.7,3011.7,4.30803197]
[1766979315105,0.0024941,3013.9,3011.8,0.16618]
[1766979315514,0.0024941,3013.9,3011.9,4.29121531]
[1766979315703,0.0024941,3013.9,3011.9,4.45739531]
[1766979316013,0.0024941,3013.9,3011.9,0.16618]
[1766979316411,0.0024941,3013.9,3012.0,4.29121531]
[1766979317514,0.0024941,3013.9,3012.0,4.45738531]
[1766979317910,0.0024941,3013.9,3012.0,0.16617]
[1766979318211,0.0024941,3013.9,3012.1,4.27725389]
[1766979318711,0.16598,3015.5,3012.2,9.44387402]
[1766979318903,0.62301738,3016.6,3013.5,0.00497867]
[1766979319109,0.16594,3016.2,3013.5,0.17106867]
[1766979319409,0.16595,3016.1,3013.7,0.16607]
[1766979319612,2.50567987,3016.0,3013.7,0.00345997]
[1766979319904,0.16599,3015.4,3013.7,0.00345997]
[1766979320112,0.16599,3015.3,3013.7,0.00345997]
[1766979320299,0.166,3015.2,3013.7,0.00345997]
[1766979321512,2.50567987,3016.0,3013.7,0.00345997]
[1766979321808,0.166,3015.1,3013.5,0.00497867]
[1766979322003,0.16602,3014.8,3013.5,0.00497867]
[1766979322605,0.16602,3014.8,3013.5,0.00785559]
[1766979324409,0.16602,3014.7,3013.5,0.00785559]
[1766979324613,0.16603,3014.6,3013.5,0.00785559]
[1766979325512,0.16604,3014.5,3013.5,0.00785559]
[1766979325807,0.16605,3014.3,3012.3,0.16615]
[1766979326014,0.16605,3014.3,3011.8,1.258]
[1766979326309,0.16605,3014.2,3012.4,4.40326416]
[1766979326504,0.16606,3014.1,3011.8,5.66126416]
[1766979326704,0.00497867,3013.3,3012.6,0.00497867]
[1766979326905,0.0082179,3013.3,3012.6,0.00497867]
[1766979332811,1.69207987,3015.1,3012.6,0.00497867]
[1766979333019,77.74561367,3019.0,3013.7,0.16608]
[1766979333309,3.324,3024.2,3019.2,0.16577]
[1766979333508,9.32461822,3024.1,3019.6,0.16575]
[1766979333708,0.16413556,3024.3,3020.3,2.50567987]
[1766979333910,0.0030336,3024.3,3021.7,2.32960183]
[1766979334209,0.26663891,3027.1,3023.1,2.32960183]
[1766979334517,0.16532,3027.5,3023.2,5.362]
[1766979335009,0.27212674,3028.8,3024.5,2.25092753]
[1766979335309,0.27212674,3028.8,3023.2,5.362]
[1766979335310,0.00243627,3028.8,3024.7,0.16547]
[1766979335718,0.00243627,3028.8,3026.3,0.00496195]
[1766979336011,0.16523,3029.2,3026.3,0.00793922]
[1766979336216,0.16526,3028.7,3024.8,4.31463706]
[1766979336405,0.16529,3028.1,3024.8,4.31463706]
[1766979336604,0.88467442,3029.7,3024.5,4.33761199]
[1766979336804,0.16524,3029.1,3024.9,8.13677893]
[1766979337001,0.16524,3029.1,3024.7,2.25092753]
[1766979337203,0.16821728,3029.1,3026.6,0.00496195]
[1766979337408,0.00297728,3029.1,3026.6,0.00496195]
[1766979337615,0.00297728,3029.1,3026.7,4.30694671]
[1766979337910,0.00297728,3029.1,3026.8,2.25092753]
[1766979338417,0.00297728,3029.1,3026.9,13.24468672]
[1766979338609,3.5669806,3033.0,3026.9,13.2487571]
[1766979338917,4.628,3032.1,3029.2,0.00495123]
[1766979339215,0.16506,3032.3,3029.3,4.32407711]